lending/lending_fUSD_20250409
["ID","MTS","AMOUNT","RATE_DAILY","PERIOD"]
[357595841,1744222232343,-181.41,0.00018414,2]
[357595843,1744222232353,-1343.2343348,0.00018414,2]
[357595845,1744222232369,-450.82714874,0.00018414,2]
[357595849,1744222232396,-1899.44851646,0.00018414,2]
[357595851,1744222232405,-777.16,0.00018434,2]
[357595853,1744222232414,-200.0,0.00018447,2]
[357595855,1744222232423,-2000.0,0.00018447,2]
[357595856,1744222232433,-200.0,0.00018447,2]
[357595858,1744222232443,-2106.46,0.00018482,2]
[357595860,1744222232452,-3127.07,0.0001849,2]
[357595862,1744222232466,-236.98696196,0.00018504,2]
[357595864,1744222232476,-1000.0,0.00018504,2]
[357595866,1744222232485,-850.0,0.00018504,2]
[357595868,1744222232495,-11534.01152158,0.00018505,2]
[357595870,1744222232507,-4095.1153792,0.00018505,2]
[357595872,1744222232519,-2908.21526417,0.00018505,2]
[357595874,1744222232530,-544.77163787,0.00018505,2]
[357595877,1744222232546,-814.48,0.00018505,2]
[357595879,1744222232557,-12538.726466,0.00018505,2]
[357595931,1744222237930,-587.4075,0.00018505,2]
[357595942,1744222238042,-1342.54289188,0.00018505,2]
[357595943,1744222238054,-2428.9893393,0.00018505,2]
[357595944,1744222238064,-51.8906607,0.00018519,2]
[357595945,1744222238101,-198.1093393,0.00018519,2]
[357595946,1744222238111,-84.45066061,0.00018533,2]
[357595947,1744222238122,-453.31050177,0.00018533,2]
[357595948,1744222238133,-316.80883762,0.00018533,2]
[357595949,1744222238142,-499.99,0.00018533,2]
[357595950,1744222238151,-282.21698508,0.00018533,2]
[357595951,1744222238163,-1177.92301492,0.00018533,2]
[357595952,1744222238172,-299.99,0.00018533,4]
[357595953,1744222238181,-150.99,0.00018533,2]
[357595954,1744222238191,-506.33,0.00018533,2]
[357595955,1744222238200,-1471.7,0.00018533,2]
[357595956,1744222238213,-3310.78,0.00018533,2]
[357595957,1744222238222,-150.99,0.00018533,2]
[357595958,1744222238232,-4160.45,0.00018533,2]
[357595959,1744222238241,-2534.19,0.00018533,2]
[357595960,1744222238251,-590.55915281,0.00018533,2]
[357595961,1744222238263,-409.43084719,0.00018533,2]
[357595962,1744222238272,-500.0,0.00018573,2]
[357595963,1744222238282,-992.78415842,0.0001878,2]
[357595964,1744222238298,-346.1346,0.0001878,2]
[357595965,1744222238309,-985.26277622,0.0001878,2]
[357595966,1744222238355,-698.78846536,0.0001878,2]
[357595967,1744222238365,-166.66,0.00018926,2]
[357595968,1744222238375,-250.0,0.00019,2]
[357595969,1744222238385,-666.15188414,0.00019,2]
[357595970,1744222238394,-184.76,0.0001903,2]
[357595971,1744222238404,-151.0,0.00019188,2]
[357595972,1744222238413,-621.78829552,0.00019188,2]
[357595973,1744222238423,-200.0,0.00019188,2]
[357595974,1744222238432,-315.25135365,0.00019199,2]
[357595977,1744222238512,-602.31864635,0.00019199,2]
[357595978,1744222238522,-917.57,0.00019204,2]
[357595979,1744222238531,-917.57,0.00019209,2]
[357595980,1744222238540,-657.99134865,0.00019214,2]
[357595981,1744222238551,-259.57865135,0.00019214,2]
[357595982,1744222238560,-223.90134865,0.00019219,2]
[357595999,1744222240146,-439.82063006,0.00019219,2]
[357596000,1744222240159,-253.84802129,0.00019219,2]
[357596001,1744222240168,-917.57,0.00019224,2]
[357596002,1744222240177,-917.57,0.00019229,2]
[357596003,1744222240187,-917.57,0.00019234,2]
[357596004,1744222240196,-917.57,0.00019239,2]
[357596005,1744222240205,-917.57,0.00019244,2]
[357596006,1744222240219,-199.13,0.00019248,2]
[357596007,1744222240228,-917.57,0.00019249,2]
[357596008,1744222240237,-917.57,0.00019255,2]
[357596009,1744222240247,-917.57,0.0001926,2]
[357596010,1744222240257,-917.57,0.00019265,2]
[357596011,1744222240267,-917.57,0.0001927,2]
[357596012,1744222240276,-917.57,0.00019275,2]
[357596013,1744222240285,-917.57,0.0001928,2]
[357596014,1744222240295,-917.57,0.00019285,2]
[357596015,1744222240304,-917.57,0.0001929,2]
[357596016,1744222240314,-917.57,0.00019295,2]
[357596017,1744222240324,-2333.73,0.00019297,2]
[357596018,1744222240334,-733.4,0.00019297,2]
[357596019,1744222240344,-250.87,0.00019394,2]
[357596020,1744222240354,-250.0,0.00019423,2]
[357596021,1744222240364,-150.0,0.00019437,2]
[357596022,1744222240373,-1852.42,0.00019437,2]
[357596023,1744222240383,-191.12,0.00019522,2]
[357596024,1744222240392,-221.97403568,0.00019585,2]
[357596025,1744222240401,-23900.0,0.00019585,2]
[357596026,1744222240411,-1437.8,0.00019689,2]
[357596027,1744222240420,-644.79446246,0.00019736,2]
[357596028,1744222240430,-203.84,0.00019774,2]
[357596029,1744222240440,-16219.50779662,0.000198,2]
[357596030,1744222240451,-3100.0,0.000198,7]
[357596031,1744222240464,-1086.52826607,0.0001989,2]
[357596032,1744222240474,-387.4985,0.00019899,2]
[357596033,1744222240483,-351.3148,0.000199,2]
[357596034,1744222240493,-5691.6793,0.000199,2]
[357596035,1744222240502,-1252.6519,0.000199,2]
[357596036,1744222240511,-1133.17,0.000199,2]
[357596037,1744222240521,-817.77132428,0.000199,2]
[357596038,1744222240530,-5773.40159359,0.000199,2]
[357596039,1744222240543,-333.59660974,0.000199,2]
[357596040,1744222240554,-2460.34472487,0.000199,2]
[357596041,1744222240565,-7163.0868718,0.000199,2]
[357596042,1744222240574,-164.7012877,0.000199,2]
[357596044,1744222240583,-6300.0,0.000199,7]
[357596045,1744222240593,-676.8194029,0.000199,2]
[357596046,1744222240602,-240.99279139,0.000199,2]
[357596047,1744222240611,-500.0,0.00019973,2]
[357596049,1744222240620,-116.98233283,0.00019973,2]
[357596050,1744222240632,-42.80580296,0.00019973,2]
[357596051,1744222240641,-500.0,0.00019973,2]
[357596052,1744222240651,-501.23696296,0.00019973,2]
[357596053,1744222240660,-500.0,0.00019973,2]
[357596054,1744222240670,-500.0,0.00019973,2]
[357596055,1744222240679,-499.999999,0.00019973,2]
[357596056,1744222240687,-500.0,0.00019973,2]
[357596057,1744222240697,-300.0,0.00019999,2]
[357596058,1744222240706,-158.04974525,0.00019999,2]
[357596059,1744222240716,-307.86900696,0.00019999,2]
[357596060,1744222240725,-8175.75864533,0.0002,2]
[357596061,1744222240736,-8815.32161643,0.0002,2]
[357596090,1744222243823,-80939.19143494,0.0002,2]
[357596110,1744222245886,-8249.9,0.0002,2]
[357596112,1744222246062,-811.75284001,0.0002,2]
[357596113,1744222246125,-4109.41867456,0.0002,2]
[357596114,1744222246137,-2305.69280038,0.0002,2]
[357596115,1744222246149,-478.75256687,0.0002,2]
[357596116,1744222246194,-427.648,0.0002,2]
[357596117,1744222246206,-2052.05,0.0002,2]
[357596118,1744222246220,-259.20133188,0.0002,2]
[357596119,1744222246231,-1640.0199,0.0002,2]
[357596120,1744222246257,-821.15033,0.0002,2]
[357596121,1744222246269,-6270.08810835,0.0002,2]
[357596122,1744222246326,-16449.77697683,0.0002,2]
[357596123,1744222246338,-2573.48754151,0.0002,2]
[357596124,1744222246349,-9884.06421446,0.0002,2]
[357596152,1744222367428,195.18,0.00013699,2]
[357596153,1744222367747,195.18,0.00013699,2]
[357596154,1744222368117,195.18,0.00013699,2]
[357596155,1744222369088,195.18,0.00013699,2]
[357596156,1744222369447,195.18,0.00013699,2]
[357596157,1744222369771,195.18,0.00013699,2]
[357596158,1744222370947,195.18,0.00013699,2]
[357596159,1744222371093,195.18,0.00013699,2]
[357596160,1744222371434,195.18,0.00013699,2]
[357596161,1744222371751,195.18,0.00013699,2]
[357596162,1744222372152,195.18,0.00013699,2]
[357596163,1744222372571,195.18,0.00013699,2]
[357596164,1744222372935,195.18,0.00013699,2]
[357596165,1744222373777,195.18,0.00013699,2]
[357596166,1744222374133,48.14273435,0.00013699,2]
[357596167,1744222374158,147.03726565,0.00013699,2]
[357596168,1744222375002,195.18,0.00013699,2]
[357596169,1744222376244,195.18,0.00013699,2]
[357596170,1744222376642,195.18,0.00013699,2]
[357596171,1744222376966,195.18,0.00013699,2]
[357596172,1744222377319,195.33,0.00013699,2]
[357596173,1744222405302,169.69,0.00031416,120]
[357596176,1744222847238,-550.0,0.0002,4]
[357596177,1744222889777,-2770.0,0.00016914,2]
[357596178,1744222912590,3094.14,0.00032,120]
[357596179,1744222931828,-2.33,0.00016914,2]
[357596180,1744222931860,-166.32536195,0.00018733,2]
[357596181,1744222931894,-250.0,0.00018822,2]
[357596182,1744222931924,-481.34463805,0.00018833,2]
[357596183,1744223183233,-200.0,0.00018819,7]
[357596186,1744223201147,-197.20753937,0.00018811,2]
[357596187,1744223236479,2040.35,0.000305,60]
[357596214,1744223432151,-150.0,0.000149,2]
[357596216,1744223432161,-250.0,0.00014949,2]
[357596218,1744223432171,-286.28651251,0.00014999,2]
[357596220,1744223432184,-5.29778089,0.00014999,2]
[357596221,1744223432195,-144.70221911,0.00014999,2]
[357596222,1744223432204,-55262.23212543,0.00015,2]
[357596223,1744223432220,-8252.6,0.00015,2]
[357596224,1744223432238,-430.25086577,0.00015,2]
[357596225,1744223432249,-3949.24771562,0.00015,2]
[357596226,1744223432371,-1800.0,0.00015,2]
[357596227,1744223432440,-13097.70797662,0.00015,2]
[357596228,1744223432452,-384.38921931,0.00015,2]
[357596243,1744223438131,-16473.23625091,0.00015,2]
[357596246,1744223438142,-4845.8449334,0.00015,2]
[357596248,1744223438194,-314.07733641,0.00015,2]
[357596249,1744223438313,-33417.08629807,0.00015,2]
[357596250,1744223438323,-255.0,0.00016124,2]
[357596251,1744223438334,-250.0,0.00016362,2]
[357596252,1744223438343,-250.0,0.0001639,2]
[357596253,1744223438354,-250.0,0.00018702,2]
[357596254,1744223438364,-209.84536195,0.00018718,2]
[357596255,1744223438377,-150.0,0.00018723,2]
[357596256,1744223438386,-500.0,0.00018801,2]
[357596257,1744223438396,-802.79246063,0.00018811,2]
[357596258,1744223438406,-1563.48,0.00018817,2]
[357596259,1744223438415,-200.0,0.00018822,2]
[357596260,1744223438425,-1518.65536195,0.00018833,2]
[357596261,1744223438437,-1024.94,0.00018837,2]
[357596262,1744223438447,-5398.46887627,0.00019,2]
[357596263,1744223438457,-343.40109571,0.0001901,7]
[357596264,1744223438466,-331.53,0.00019178,2]
[357596266,1744223438476,-150.99,0.00019178,2]
[357596267,1744223438485,-2772.33,0.00019178,2]
[357596269,1744223438495,-166.66,0.00019378,2]
[357596271,1744223438505,-5918.59,0.00019378,2]
[357596273,1744223438515,-1166.86,0.00019688,2]
[357596275,1744223438524,-2700.0,0.000197,7]
[357596277,1744223438534,-564.0161691,0.00019701,2]
[357596279,1744223438544,-647.92,0.00019728,2]
[357596281,1744223438554,-647.92,0.00019734,2]
[357596283,1744223438563,-647.92,0.00019739,2]
[357596285,1744223438573,-647.92,0.00019744,2]
[357596286,1744223438582,-647.92,0.00019749,2]
[357596287,1744223438592,-647.92,0.00019754,2]
[357596289,1744223438602,-647.92,0.00019759,2]
[357596290,1744223438611,-647.92,0.00019765,2]
[357596291,1744223438621,-647.92,0.0001977,2]
[357596292,1744223438630,-647.92,0.00019775,2]
[357596293,1744223438639,-151.0,0.00019779,2]
[357596294,1744223438649,-621.78829552,0.00019779,2]
[357596295,1744223438659,-200.0,0.00019779,2]
[357596296,1744223438668,-647.92,0.0001978,2]
[357596297,1744223438677,-647.92,0.00019785,2]
[357596298,1744223438691,-1518.8978264,0.0001979,2]
[357596299,1744223438701,-647.92,0.0001979,2]
[357596300,1744223438710,-23900.0,0.00019791,2]
[357596301,1744223438720,-647.92,0.00019796,2]
[357596302,1744223438729,-5500.0,0.000198,7]
[357596303,1744223438738,-647.92,0.00019801,2]
[357596304,1744223438747,-647.92,0.00019806,2]
[357596305,1744223438757,-22675.39806441,0.0001981,2]
[357596306,1744223438766,-647.92,0.00019811,2]
[357596307,1744223438949,-647.92,0.00019816,2]
[357596308,1744223438970,-647.92,0.00019822,2]
[357596309,1744223438980,-647.92,0.00019827,2]
[357596310,1744223438989,-789.33,0.00019866,2]
[357596311,1744223438998,-642.13588123,0.00019884,2]
[357596312,1744223439008,-215.50830487,0.00019884,2]
[357596313,1744223439017,-642.13588123,0.00019884,2]
[357596314,1744223439026,-642.13588123,0.00019884,2]
[357596315,1744223439035,-642.13588123,0.00019884,2]
[357596316,1744223439045,-642.13588123,0.00019884,2]
[357596317,1744223439054,-642.13588123,0.00019884,2]
[357596318,1744223439063,-642.13588123,0.00019884,2]
[357596319,1744223439072,-121.15007468,0.00019884,2]
[357596320,1744223439084,-520.98580655,0.00019884,2]
[357596321,1744223439094,-114.07013343,0.00019884,2]
[357596322,1744223439105,-410.945,0.00019884,2]
[357596323,1744223439120,-117.1207478,0.00019884,2]
[357596324,1744223439129,-642.13588123,0.00019884,2]
[357596325,1744223439139,-642.13588123,0.00019884,2]
[357596326,1744223439148,-642.13588123,0.00019884,2]
[357596327,1744223439157,-642.13588123,0.00019884,2]
[357596328,1744223439166,-642.13588123,0.00019884,2]
[357596329,1744223439175,-642.13588123,0.00019884,2]
[357596330,1744223439187,-643.2239045,0.00019885,2]
[357596331,1744223439196,-210.86869244,0.00019885,2]
[357596332,1744223439205,-11622.52130667,0.00019886,2]
[357596333,1744223439214,-9838.6033,0.00019886,2]
[357596334,1744223439224,-14976.32568622,0.0001989,2]
[357596335,1744223439239,-1620.40835016,0.0001989,2]
[357596336,1744223439249,-764.11334262,0.000199,2]
[357596337,1744223439258,-74.87830722,0.000199,2]
[357596355,1744223440840,-89.82298048,0.000199,2]
[357596357,1744223440849,-910.70963561,0.000199,7]
[357596360,1744223440867,-7289.29036439,0.000199,7]
[357596362,1744223440876,-3326.58791663,0.000199,2]
[357596363,1744223440886,-500.0,0.00019973,2]
[357596364,1744223440895,-500.0,0.00019973,2]
[357596365,1744223440905,-500.0,0.00019973,2]
[357596366,1744223440914,-500.0,0.00019973,2]
[357596367,1744223440923,-1250.3200847,0.00019986,2]
[357596368,1744223440932,-975.71794313,0.00019986,2]
[357596369,1744223440948,-82500.00000001,0.00019986,2]
[357596370,1744223440963,-3071.32839809,0.00019986,2]
[357596371,1744223440974,-4265.15964575,0.00019986,2]
[357596372,1744223440988,-285.81595013,0.00019986,2]
[357596373,1744223440999,-9200.0,0.00019986,2]
[357596374,1744223441010,-414.54,0.00019986,2]
[357596375,1744223441021,-8588.60291679,0.00019986,2]
[357596376,1744223441032,-4994.0278127,0.00019986,2]
[357596377,1744223441041,-3967.4634871,0.00019986,2]
[357596378,1744223441050,-3022.9315141,0.00019986,2]
[357596379,1744223441060,-256.56064703,0.0001999,2]
[357596380,1744223441069,-300.0,0.00019999,2]
[357596381,1744223441078,-4006.56057917,0.0002,2]
[357596390,1744223443130,-1945.60641714,0.0002,2]
[357596391,1744223443195,-2006.30813026,0.0002,2]
[357596392,1744223443206,-265.42405591,0.0002,2]
[357596394,1744223443217,-16522.14655332,0.0002,2]
[357596396,1744223443229,-873.04153788,0.0002,2]
[357596398,1744223443309,-21.91187959,0.0002,2]
[357596411,1744223444332,-1596.6379024,0.0002,2]
[357596439,1744223446238,-389.71999978,0.0002,2]
[357596440,1744223446303,-2975.41582066,0.0002,2]
[357596441,1744223446315,-105482.21153005,0.0002,2]
[357596442,1744223446326,-13229.55798818,0.0002,2]
[357596443,1744223446337,-10643.79999997,0.0002,2]
[357596444,1744223446348,-3610.59024611,0.0002,2]
[357596445,1744223446369,-13215.827894,0.0002,2]
[357596446,1744223446384,-1438.48568287,0.0002,2]
[357596447,1744223446474,-1418.92134709,0.0002,2]
[357596514,1744223739548,179.12956334,0.00032,120]
[357596522,1744224301120,-250.0,0.00016765,2]
[357596523,1744224301462,-750.0,0.00016803,2]
[357596525,1744224319463,-158.18996,0.0002,23]
[357596526,1744224338681,-200.0,0.00018544,7]
[357596527,1744224364336,158.18997,0.000248,34]
[357596528,1744224364390,158.18996,0.000273,39]
[357596530,1744224547999,230.202122,7.945e-05,2]
[357596531,1744224560150,-1916.28,0.00016803,2]
[357596532,1744224560172,-184.32077119,0.00017115,2]
[357596533,1744224560428,-250.0,0.00017215,2]
[357596534,1744224560452,-284.01387006,0.00018276,2]
[357596535,1744224620131,-334.99392635,0.00017015,2]
[357596536,1744224620167,-334.99392635,0.00017115,2]
[357596537,1744224620206,-662.63423694,0.00018276,2]
[357596538,1744224620243,-300.0,0.00018368,2]
[357596539,1744224620280,-23900.0,0.00018369,2]
[357596540,1744224620316,-150.0,0.00018386,2]
[357596541,1744224620356,-250.0,0.00018386,2]
[357596542,1744224620394,-223.38,0.00018469,2]
[357596543,1744224620434,-250.0,0.00018483,2]
[357596544,1744224620469,-256.12,0.00018493,2]
[357596545,1744224620506,-1000.0,0.00018508,2]
[357596546,1744224620541,-150.0,0.00018521,2]
[357596547,1744224620577,-249.54,0.00018533,2]
[357596548,1744224620612,-5087.16,0.00018533,2]
[357596549,1744224620647,-150.99,0.00018533,2]
[357596550,1744224620684,-250.0,0.00018569,2]
[357596551,1744224620718,-571.74,0.00018576,2]
[357596552,1744224620756,-200.0,0.00018602,2]
[357596553,1744224620791,-250.0,0.00018717,2]
[357596554,1744224620828,-5000.01,0.00018765,2]
[357596555,1744224620864,-2000.0,0.00018766,2]
[357596556,1744224620901,-1330.38,0.00018789,2]
[357596557,1744224620939,-200.0,0.00018794,2]
[357596558,1744224620974,-19669.7865,0.000189,2]
[357596559,1744224621280,-2315.39,0.0001893,2]
[357596560,1744224621313,-184.85,0.00018931,2]
[357596561,1744224621336,-184.32077119,0.0001895,2]
[357596562,1744224621359,-173.0,0.00018988,2]
[357596563,1744224621383,-151.0,0.00018989,2]
[357596564,1744224621405,-621.78829552,0.00018989,2]
[357596565,1744224621429,-200.0,0.00018989,2]
[357596566,1744224621451,-250.0,0.00019,2]
[357596567,1744224621478,-22883.76202021,0.00019,2]
[357596568,1744224621501,-166.68,0.0001905,2]
[357596569,1744224621523,-2666.28,0.00019067,2]
[357596570,1744224621546,-223.38,0.00019495,2]
[357596571,1744224621570,-644.79446246,0.00019537,2]
[357596572,1744224621593,-673.98,0.00019663,2]
[357596573,1744224621616,-673.98,0.00019668,2]
[357596574,1744224621639,-673.98,0.00019673,2]
[357596575,1744224621662,-673.98,0.00019678,2]
[357596576,1744224621688,-673.98,0.00019684,2]
[357596577,1744224621712,-673.98,0.00019689,2]
[357596578,1744224621734,-673.98,0.00019694,2]
[357596579,1744224621760,-673.98,0.00019699,2]
[357596580,1744224621784,-1900.0,0.000197,7]
[357596581,1744224621808,-673.98,0.00019704,2]
[357596582,1744224621834,-673.98,0.00019709,2]
[357596583,1744224621861,-673.98,0.00019715,2]
[357596584,1744224621890,-673.98,0.0001972,2]
[357596585,1744224621914,-673.98,0.00019725,2]
[357596586,1744224621943,-673.98,0.0001973,2]
[357596587,1744224621968,-673.98,0.00019735,2]
[357596588,1744224621994,-673.98,0.00019741,2]
[357596589,1744224622022,-673.98,0.00019746,2]
[357596590,1744224622047,-673.98,0.00019751,2]
[357596591,1744224622072,-673.98,0.00019756,2]
[357596592,1744224622098,-673.98,0.00019761,2]
[357596593,1744224622123,-3900.0,0.000198,7]
[357596594,1744224622147,-200.0,0.0001984,2]
[357596595,1744224622172,-564.01616905,0.00019886,2]
[357596596,1744224622199,-592.15740116,0.000199,2]
[357596597,1744224622223,-654.95429364,0.000199,2]
[357596598,1744224622246,-164.7012877,0.000199,2]
[357596599,1744224622269,-11860.15319383,0.000199,2]
[357596600,1744224622292,-203.94841366,0.000199,2]
[357596601,1744224622315,-5900.0,0.000199,7]
[357596602,1744224622338,-3615.0,0.00019937,2]
[357596603,1744224622360,-343.60637912,0.00019973,2]
[357596604,1744224622384,-155.73046179,0.00019973,2]
[357596605,1744224622414,-192.06799806,0.00019973,2]
[357596606,1744224622444,-502.84958835,0.00019973,2]
[357596607,1744224622467,-160.37583721,0.00019973,2]
[357596608,1744224622491,-163.58366371,0.00019973,2]
[357596609,1744224622513,-500.0,0.00019973,2]
[357596610,1744224622538,-500.0,0.00019973,2]
[357596611,1744224622562,-4999.7202116,0.00019986,2]
[357596612,1744224622584,-10220.9943307,0.00019986,2]
[357596613,1744224622607,-1331.0127404,0.00019986,2]
[357596614,1744224622632,-96931.5349814,0.00019986,2]
[357596615,1744224622655,-171.04043135,0.0001999,2]
[357596616,1744224622683,-169.60897804,0.00019998,2]
[357596617,1744224622713,-500.0,0.00019998,2]
[357596618,1744224622740,-500.0,0.00019998,2]
[357596619,1744224622770,-500.0,0.00019998,2]
[357596620,1744224622792,-210.18133001,0.00019998,2]
[357596621,1744224622818,-500.0,0.00019998,2]
[357596622,1744224622847,-500.0,0.00019998,2]
[357596623,1744224622872,-500.0,0.00019998,2]
[357596624,1744224622896,-500.0,0.00019998,2]
[357596625,1744224622922,-348.21415898,0.00019998,2]
[357596626,1744224622948,-500.0,0.00019998,2]
[357596627,1744224622973,-500.0,0.00019998,2]
[357596628,1744224622997,-500.0,0.00019998,2]
[357596629,1744224623021,-500.0,0.00019998,2]
[357596630,1744224623045,-618.41672083,0.00019998,2]
[357596631,1744224623068,-618.41672083,0.00019998,2]
[357596632,1744224623092,-618.41672083,0.00019998,2]
[357596633,1744224623116,-618.41672083,0.00019998,2]
[357596634,1744224623140,-618.41672083,0.00019998,2]
[357596635,1744224623163,-618.41672083,0.00019998,2]
[357596636,1744224623188,-618.41672083,0.00019998,2]
[357596637,1744224623211,-618.41672083,0.00019998,2]
[357596638,1744224623234,-618.41672083,0.00019998,2]
[357596639,1744224623258,-618.41672083,0.00019998,2]
[357596640,1744224623282,-618.41672083,0.00019998,2]
[357596641,1744224623306,-618.41672083,0.00019998,2]
[357596642,1744224623330,-618.41672083,0.00019998,2]
[357596643,1744224623355,-650.17325514,0.00019998,2]
[357596644,1744224623393,-650.17325514,0.00019998,2]
[357596645,1744224623423,-650.17325514,0.00019998,2]
[357596646,1744224623452,-380.97164123,0.00019999,2]
[357596647,1744224623477,-650.0,0.0002,2]
[357596648,1744224623505,-638987.36979272,0.0002,2]
[357596649,1744224623528,-750.0,0.0002,2]
[357596650,1744224623552,-1010.24143362,0.0002,2]
[357596651,1744224623578,-1089359.45400744,0.0002,2]
[357596658,1744224632256,-14415.00541485,0.0002,2]
[357596659,1744224632316,-35633.53492007,0.0002,2]
[357596660,1744224632327,-4662.291985,0.0002,2]
[357596661,1744224632378,-8243.0,0.0002,2]
[357596662,1744224632390,-4127.891497,0.0002,2]
[357596663,1744224632401,-989.2778585,0.0002,2]
[357596664,1744224632443,-625.19937617,0.0002,2]
[357596665,1744224632502,-331.89658474,0.0002,2]
[357596970,1744224638387,-21748.80755839,0.0002,2]
[357596971,1744224638398,-10757.072,0.0002,4]
[357596972,1744224638407,-151.0,0.0002,2]
[357596973,1744224638416,-151.0,0.0002,2]
[357596974,1744224638426,-164.905625,0.0002,2]
[357596975,1744224638435,-151.0,0.0002,2]
[357596976,1744224638444,-152.662126,0.0002,2]
[357596977,1744224638457,-209.430364,0.0002,2]
[357596978,1744224638467,-209.430364,0.0002,2]
[357596979,1744224638478,-378.53578,0.0002,2]
[357596980,1744224638487,-378.53578,0.0002,2]
[357596981,1744224638497,-162.97910744,0.0002,4]
[357596982,1744224638508,-200.0,0.0002,2]
[357596983,1744224638518,-185.30026198,0.0002,2]
[357596984,1744224638527,-151.0,0.0002,2]
[357596985,1744224638536,-151.35,0.0002,2]
[357596986,1744224638546,-151.35,0.0002,2]
[357596987,1744224638555,-151.35,0.0002,2]
[357596988,1744224638564,-151.35,0.0002,2]
[357596989,1744224638574,-151.35,0.0002,2]
[357596990,1744224638583,-151.35,0.0002,2]
[357596991,1744224638592,-151.35,0.0002,2]
[357596992,1744224638601,-151.35,0.0002,2]
[357596993,1744224638611,-151.35,0.0002,2]
[357596994,1744224638620,-151.35,0.0002,2]
[357596995,1744224638629,-151.35,0.0002,2]
[357596996,1744224638639,-151.35,0.0002,2]
[357596997,1744224638648,-151.35,0.0002,2]
[357596998,1744224638657,-154.831784,0.0002,2]
[357596999,1744224638667,-2000.0,0.0002,4]
[357597000,1744224638676,-500.0,0.00020082,2]
[357597001,1744224638686,-668.65185757,0.00020085,2]
[357597002,1744224638695,-583.43,0.00020159,2]
[357597003,1744224638707,-203.84,0.00020164,2]
[357597004,1744224638717,-200.0,0.000202,2]
[357597005,1744224638727,-166.66,0.00020325,2]
[357597006,1744224638736,-156.587,0.00020358,2]
[357597007,1744224638746,-207.4,0.00020358,2]
[357597009,1744224638759,-1852.42,0.00020458,2]
[357597010,1744224638769,-223.38,0.00020521,2]
[357597011,1744224638779,-697.44,0.00020548,2]
[357597012,1744224638789,-693.3919763,0.00020633,2]
[357597013,1744224638800,-1000.0,0.00020821,2]
[357597014,1744224638810,-169.69,0.00020944,2]
[357597015,1744224638819,-3362.49,0.00020951,2]
[357597016,1744224638831,-6351.68,0.00020951,2]
[357597017,1744224638840,-16297.07,0.00020951,2]
[357597018,1744224638850,-2027.51,0.00020951,2]
[357597019,1744224638859,-159.78931742,0.00020973,2]
[357597020,1744224638869,-500.0,0.00020973,2]
[357597021,1744224638878,-500.0,0.00020973,2]
[357597022,1744224638888,-500.37117842,0.00020973,2]
[357597023,1744224638898,-500.0,0.00020973,2]
[357597024,1744224638908,-213.93166906,0.00020973,2]
[357597025,1744224638917,-159.78626402,0.00020973,2]
[357597026,1744224638926,-151.35,0.0002099,2]
[357597027,1744224638942,-2354.88071018,0.00021,2]
[357597028,1744224638955,-110857.24965343,0.00021,2]
[357597029,1744224638965,-500.0,0.00021,2]
[357597030,1744224638974,-4247.40894273,0.00021,2]
[357597031,1744224638984,-300.0,0.00021,2]
[357597032,1744224638994,-154.913324,0.00021,2]
[357597033,1744224639003,-637.947231,0.00021,2]
[357597035,1744224639013,-637.947231,0.00021,2]